bitfinex/quotes_SOLUSD_20250717
["timestamp","ask_amount","ask_price","bid_price","bid_amount"]
[1752738219189,5.44849408,173.18,173.13,11.22417698]
[1752738219416,11.22290744,173.18,173.13,11.22417698]
[1752738219592,11.22290744,173.18,173.15,0.03]
[1752738219786,5.44849408,173.17,173.15,0.03]
[1752738220889,5.77441336,173.18,173.15,0.03]
[1752738220890,5.44849408,173.16,173.15,0.03]
[1752738221090,5.77446194,173.18,173.15,0.03]
[1752738221296,5.44849408,173.17,173.15,0.03]
[1752738222021,5.77438521,173.18,173.15,0.03]
[1752738222318,5.44849408,173.17,173.15,0.03]
[1752738222499,5.44849408,173.16,173.15,0.03]
[1752738222699,5.77449455,173.18,173.15,0.03]
[1752738222911,5.44849408,173.16,173.15,0.03]
[1752738226902,5.44849408,173.17,173.15,0.03]
[1752738227423,5.44849408,173.16,173.15,0.03]
[1752738228622,5.77480817,173.17,173.15,0.03]
[1752738228802,5.44849408,173.16,173.15,0.03]
[1752738231022,148.1,173.19,173.15,5.47849408]
[1752738231224,148.1,173.19,173.15,0.03]
[1752738231524,0.06,173.22,173.19,5.77400542]
[1752738231911,0.06,173.22,173.21,5.44849408]
[1752738232917,0.06,173.22,173.21,5.77333872]
[1752738233228,0.06,173.22,173.21,11.2218328]
[1752738233926,0.06,173.22,173.21,12.7469328]
[1752738234603,0.06,173.27,173.25,26.0]
[1752738234801,0.06,173.27,173.26,5.44849408]
[1752738235032,0.06,173.27,173.26,11.22016671]
[1752738235328,0.06,173.27,173.26,37.22016671]
[1752738235630,0.06,173.29,173.28,26.0]
[1752738235821,0.06,173.29,173.28,66.86849408]
[1752738236012,0.06,173.33,173.3,1.6648]
[1752738236330,0.06,173.33,173.32,26.0]
[1752738236527,0.06,173.33,173.32,31.44849408]
[1752738237126,0.06,173.33,173.32,37.21816867]
[1752738237305,0.06,173.33,173.32,43.30426867]
[1752738237708,148.1,173.44,173.36,26.0]
[1752738238246,148.1,173.44,173.4,5.44849408]
[1752738238433,148.1,173.44,173.43,5.44849408]
[1752738238747,148.1,173.44,173.4,5.44849408]
[1752738238912,153.54849408,173.44,173.38,26.0]
[1752738239113,153.54849408,173.44,173.39,11.21583695]
[1752738239745,148.1,173.44,173.41,5.44849408]
[1752738240050,148.1,173.44,173.42,5.44849408]
[1752738241606,148.1,173.44,173.39,5.76734287]
[1752738241810,148.1,173.44,173.42,5.44849408]
[1752738242006,5.76585926,173.44,173.38,26.0]
[1752738242229,31.76585926,173.44,173.33,35.76]
[1752738242439,5.76585926,173.44,173.39,5.44849408]
[1752738242749,5.76535024,173.45,173.37,31.44849408]
[1752738242949,5.44849408,173.42,173.37,26.0]
[1752738243118,5.76535024,173.45,173.33,16.78468397]
[1752738243317,5.76535024,173.45,173.36,41.28849408]
[1752738243521,41.58535024,173.45,173.36,35.84]
[1752738243711,5.76535024,173.45,173.37,5.44849408]
[1752738243920,1.5565,173.5,173.39,26.0]
[1752738244120,37.3365,173.5,173.39,26.0]
[1752738244336,5.44849408,173.47,173.42,5.44849408]
[1752738244531,7.00499408,173.5,173.4,5.44849408]
[1752738244741,148.1,173.58,173.46,5.44849408]
[1752738244940,7.97015712,173.53,173.43,12.39541054]
[1752738245117,7.97015712,173.51,173.46,7.97015712]
[1752738245442,31.76202823,173.55,173.46,7.97015712]
[1752738245654,7.97015712,173.51,173.46,7.97015712]
[1752738245818,0.06,173.51,173.44,35.7]
[1752738246022,5.82335657,173.51,173.47,7.97015712]
[1752738246316,7.97015712,173.5,173.45,43.65015712]
[1752738246530,13.79351369,173.51,173.46,7.97015712]
[1752738246818,13.79351369,173.51,173.45,35.68]
[1752738247033,7.97015712,173.5,173.45,35.68]
[1752738247234,13.7341228,173.5,173.45,35.68]
[1752738247435,7.97015712,173.48,173.42,69.61015712]
[1752738247754,5.76396568,173.5,173.42,61.64]
[1752738247922,7.97015712,173.48,173.43,7.97015712]
[1752738248116,5.76396568,173.5,173.42,69.59015712]
[1752738248319,7.97015712,173.49,173.44,7.97015712]
[1752738248530,7.97015712,173.45,173.41,26.0]
[1752738248825,7.97015712,173.44,173.39,7.97015712]
[1752738249347,7.97015712,173.44,173.39,43.55015712]
[1752738249754,5.76435323,173.48,173.4,7.97015712]
[1752738250044,7.97015712,173.45,173.4,7.97015712]
[1752738250228,7.97015712,173.44,173.39,41.34734508]
[1752738250439,7.97015712,173.44,173.39,49.3175022]
[1752738250754,7.97015712,173.45,173.4,7.97015712]
[1752738250928,7.97015712,173.44,173.4,35.5]
[1752738251129,5.76468553,173.47,173.4,35.5]
[1752738251435,7.97015712,173.45,173.4,43.47015712]
[1752738251834,5.76468553,173.47,173.4,43.47015712]
[1752738252227,7.97015712,173.45,173.4,43.47015712]
[1752738252432,7.97015712,173.45,173.4,35.5]
[1752738252739,7.97015712,173.45,173.4,43.47015712]
[1752738253134,5.76524745,173.46,173.4,49.23713308]
[1752738253320,7.97015712,173.45,173.4,49.23713308]
[1752738254052,13.73488413,173.47,173.41,7.97015712]
[1752738254228,13.73488413,173.47,173.4,41.26697596]
[1752738254229,7.97015712,173.44,173.39,7.97015712]
[1752738254650,7.97015712,173.44,173.4,35.42]
[1752738255029,7.97015712,173.44,173.4,35.4]
[1752738255552,13.73591466,173.44,173.4,35.4]
[1752738255742,7.97015712,173.44,173.4,35.4]
[1752738256055,13.73585835,173.44,173.4,35.4]
[1752738256750,13.73585835,173.44,173.39,7.97015712]
[1752738256954,7.97015712,173.42,173.39,61.3]
[1752738257124,7.97015712,173.42,173.39,26.0]
[1752738257326,7.97015712,173.43,173.39,26.0]
[1752738257532,13.73626091,173.43,173.39,26.0]
[1752738257750,7.97015712,173.42,173.38,35.28]
[1752738258449,13.73626091,173.43,173.38,43.25015712]
[1752738258852,7.97015712,173.42,173.38,35.28]
[1752738259155,13.73626091,173.43,173.38,35.28]
[1752738259349,13.73626091,173.43,173.38,43.25015712]
[1752738259554,13.73626091,173.43,173.37,7.29089012]
[1752738259857,7.97015712,173.45,173.4,7.97015712]
[1752738260151,7.97015712,173.44,173.39,7.97015712]
[1752738260942,13.73597375,173.44,173.39,7.97015712]
[1752738261257,7.97015712,173.43,173.38,43.17015712]
[1752738262128,7.97015712,173.43,173.38,35.2]
[1752738262330,5.76581663,173.44,173.38,43.17015712]
[1752738262831,7.97015712,173.43,173.38,43.17015712]
[1752738263029,13.73623313,173.43,173.38,43.17015712]
[1752738263742,13.73623313,173.43,173.38,48.93777613]
[1752738263938,5.76607601,173.43,173.39,7.97015712]
[1752738264257,5.76607601,173.43,173.39,43.07015712]
[1752738264450,13.73592922,173.44,173.39,43.07015712]
[1752738265054,5.44030483,173.43,173.39,35.1]
[1752738265557,11.20645778,173.43,173.39,35.1]
[1752738266733,5.76615295,173.43,173.39,5.44030483]
[1752738267058,11.20606648,173.44,173.39,40.48030483]
[1752738267260,14.41196343,173.47,173.39,40.48030483]
[1752738267261,5.76501787,173.46,173.4,5.44030483]
[1752738267765,5.44030483,173.44,173.39,46.24756144]
[1752738268058,5.50030483,173.44,173.39,46.24756144]
[1752738268355,5.82581765,173.44,173.39,40.80725661]
[1752738268545,5.44030483,173.43,173.39,35.04]
[1752738269231,5.82581765,173.44,173.39,35.04]
[1752738269437,11.26612248,173.44,173.39,40.46030483]
[1752738269840,5.82581765,173.44,173.39,35.02]
[1752738270047,0.06,173.44,173.41,5.44030483]
[1752738270364,0.06,173.44,173.4,5.44030483]
[1752738271257,0.06,173.44,173.39,40.78727777]
[1752738271442,0.06,173.44,173.4,5.44030483]
[1752738271855,0.06,173.44,173.39,40.78727777]
[1752738272361,0.06,173.44,173.41,5.44030483]
[1752738272544,0.06,173.44,173.42,5.44030483]
[1752738272743,0.06,173.44,173.43,5.44030483]
[1752738273262,0.06,173.44,173.42,40.78625773]
[1752738273437,0.06,173.44,173.43,5.44030483]
[1752738274256,0.06,173.44,173.42,35.02]
[1752738274838,0.06,173.44,173.42,40.46030483]
[1752738275347,0.06,173.44,173.42,5.44030483]
[1752738275552,0.06,173.44,173.42,35.02]
[1752738275755,0.06,173.44,173.42,40.46030483]
[1752738276455,0.06,173.44,173.42,35.02]
[1752738276657,0.06,173.44,173.42,40.46030483]
[1752738278043,0.06,173.44,173.43,5.44030483]
[1752738278557,0.06,173.44,173.42,35.02]
[1752738278881,0.06,173.44,173.43,5.44030483]
[1752738279264,0.06,173.44,173.42,40.46030483]
[1752738279961,0.06,173.44,173.43,5.44030483]
[1752738281350,0.06,173.44,173.42,40.46030483]
[1752738281655,0.06,173.44,173.43,35.02]
[1752738283077,0.06,173.44,173.43,57.57069907]
[1752738283271,0.06,173.44,173.43,63.0110039]
[1752738284755,0.06,173.51,173.46,26.0]
[1752738284955,0.06,173.51,173.47,35.0]
[1752738285157,0.06,173.51,173.48,5.44030483]
[1752738285375,0.06,173.51,173.49,5.44030483]
[1752738285577,0.06,173.51,173.5,5.44030483]
[1752738286269,0.06,173.51,173.5,11.20399359]
[1752738286777,0.06,173.51,173.5,5.76368876]
[1752738287075,0.06,173.51,173.5,46.20399359]
[1752738287374,0.06,173.51,173.5,35.0]
[1752738287774,0.06,173.51,173.5,46.20399359]
[1752738289056,0.06,173.51,173.5,11.20399359]
[1752738289781,0.06,173.51,173.5,46.20399359]
[1752738290153,0.06,173.51,173.5,62.98867756]
[1752738291960,0.06,173.51,173.5,68.42898239]
[1752738293260,0.06,173.51,173.5,62.98867756]
[1752738293454,0.06,173.51,173.5,68.42898239]
[1752738293855,0.06,173.51,173.5,62.98867756]
[1752738294285,0.06,173.51,173.5,31.44030483]
[1752738294461,0.06,173.51,173.5,77.76468397]
[1752738294662,0.06,173.51,173.5,83.2049888]
[1752738295159,0.06,173.51,173.5,83.1849888]
[1752738295371,0.06,173.51,173.5,88.94867756]
[1752738295765,0.06,173.51,173.5,26.0]
[1752738295982,0.06,173.51,173.5,66.40030483]
[1752738296176,0.06,173.51,173.5,31.44030483]
[1752738296360,0.06,173.51,173.5,72.16399359]
[1752738297884,0.06,173.51,173.5,66.40030483]
[1752738299880,0.06,173.51,173.5,60.96]
[1752738300097,0.06,173.51,173.5,66.40030483]
[1752738300384,0.06,173.51,173.5,31.44030483]
[1752738300594,0.06,173.51,173.5,34.96]
[1752738300761,0.06,173.51,173.5,66.38030483]
[1752738302087,6.6561,173.62,173.51,16.78468397]
[1752738302263,6.6561,173.62,173.55,26.0]
[1752738302264,0.1,173.62,173.55,26.0]
[1752738302464,0.1,173.62,173.59,5.44030483]
[1752738302665,0.1,173.62,173.59,34.94]
[1752738306714,0.1,173.62,173.59,40.70068045]
[1752738307601,0.1,173.62,173.59,34.94]
[1752738308017,5.44030483,173.6,173.51,44.50797931]
[1752738308220,5.44030483,173.58,173.53,5.44030483]
[1752738308531,5.44030483,173.59,173.54,40.34030483]
[1752738308960,20.25911749,173.62,173.54,40.34030483]
[1752738309106,5.44030483,173.59,173.54,40.34030483]
[1752738309436,11.20115795,173.59,173.54,40.34030483]
[1752738310427,5.54030483,173.62,173.57,5.44030483]
[1752738310628,5.54030483,173.62,173.57,40.34030483]
[1752738310835,0.1,173.62,173.58,5.44030483]
[1752738311006,5.85974682,173.62,173.59,34.9]
[1752738311210,11.30005165,173.62,173.59,34.9]
[1752738312222,5.54030483,173.62,173.59,34.9]
[1752738312497,0.1,173.62,173.59,40.34030483]
[1752738312743,0.1,173.62,173.59,34.9]
[1752738313252,0.1,173.62,173.59,46.10093429]
[1752738314324,0.1,173.62,173.6,34.88]
[1752738315539,0.1,173.62,173.57,5.76125646]
[1752738315729,5.8598415,173.62,173.52,14.40687284]
[1752738315934,0.1,173.62,173.58,5.44030483]
[1752738316231,0.1,173.62,173.59,34.86]
[1752738317241,11.30008873,173.62,173.59,34.86]
[1752738318020,11.30008873,173.62,173.59,33.86]
[1752738318759,5.44030483,173.6,173.5,0.03]
[1752738318938,5.44030483,173.59,173.54,5.44030483]
[1752738319130,5.44030483,173.59,173.55,34.86]
[1752738320923,5.44030483,173.59,173.54,5.44030483]
[1752738321133,5.44030483,173.57,173.5,0.03]
[1752738321355,5.44030483,173.54,173.51,34.84]
[1752738321526,5.44030483,173.53,173.51,34.84]
[1752738321927,5.44030483,173.53,173.5,0.03]
[1752738322143,11.20302827,173.53,173.51,34.84]
[1752738322724,1.59,173.51,173.4,6.3937]
[1752738323032,5.44030483,173.47,173.42,5.44030483]
[1752738323236,5.44030483,173.48,173.43,5.44030483]
[1752738323565,5.44030483,173.48,173.44,34.84]
[1752738324225,5.76468553,173.47,173.44,34.84]
[1752738324429,11.20476263,173.48,173.44,40.28030483]
[1752738324849,5.7644578,173.48,173.44,34.84]
[1752738325026,5.7644578,173.48,173.44,40.28030483]
[1752738325739,11.20476263,173.48,173.44,34.84]
[1752738325943,5.7644578,173.48,173.44,34.84]
[1752738326239,11.20476263,173.48,173.44,34.84]
[1752738326454,5.44030483,173.46,173.44,34.84]
[1752738326838,5.44030483,173.46,173.42,5.44030483]
[1752738327040,0.1,173.62,173.49,26.0]
[1752738327349,0.1,173.62,173.6,5.44030483]
[1752738327853,0.1,173.62,173.58,34.82]
[1752738328034,0.1,173.62,173.6,5.44030483]
[1752738328371,0.1,173.62,173.61,5.44030483]
[1752738328650,0.1,173.62,173.59,34.8]
[1752738328856,0.1,173.62,173.57,5.76136429]
[1752738328857,0.1,173.62,173.58,5.44030483]
[1752738329034,0.1,173.62,173.58,7.96115001]
[1752738329234,0.1,173.62,173.59,7.96115001]
[1752738329832,0.1,173.62,173.6,2.0672861]
[1752738330027,0.1,173.62,173.57,5.76136429]
[1752738330028,0.1,173.62,173.61,10.02827812]
[1752738330236,0.1,173.62,173.61,2.06712811]
[1752738330652,0.1,173.62,173.59,42.76115001]
[1752738330936,0.1,173.62,173.61,7.96115001]
[1752738331266,0.1,173.62,173.61,2.06695469]
[1752738333564,5.8597051,173.62,173.61,2.06695469]
[1752738333945,13.82085511,173.62,173.59,0.03]
[1752738334240,7.96115001,173.61,173.59,0.03]
[1752738334448,5.8597051,173.62,173.59,0.03]
[1752738334955,7.96115001,173.6,173.59,0.03]
[1752738335148,7.96115001,173.6,173.59,2.09737728]
[1752738335856,7.96115001,173.6,173.59,0.03]
[1752738336667,13.72151867,173.6,173.59,0.03]
[1752738338265,5.76036866,173.6,173.59,0.03]
[1752738338439,13.72151867,173.6,173.59,0.03]
[1752738338640,5.76036866,173.6,173.59,0.03]
[1752738338836,26.0,173.57,173.55,0.79138179]
[1752738339279,148.1,173.59,173.55,0.79138179]
[1752738339765,7.96115001,173.56,173.55,0.79138179]
[1752738339969,7.96115001,173.57,173.55,0.79138179]
[1752738340772,7.96115001,173.56,173.55,0.79138179]
[1752738340955,5.76148042,173.57,173.55,0.79138179]
[1752738341265,5.76038483,173.6,173.55,0.79138179]
[1752738341561,42.70115001,173.61,173.55,0.79138179]
[1752738341757,42.70115001,173.61,173.56,7.96115001]
[1752738342535,7.96115001,173.6,173.55,0.79138179]
[1752738342758,7.96115001,173.6,173.55,8.7525318]
[1752738344463,7.96115001,173.6,173.55,0.79138179]
[1752738344658,7.96115001,173.6,173.55,8.7525318]
[1752738344839,7.96115001,173.6,173.55,0.79138179]
[1752738345243,7.96115001,173.6,173.55,8.7525318]
[1752738345852,7.96115001,173.6,173.55,0.79138179]
[1752738346155,7.96115001,173.6,173.55,8.7525318]
[1752738346507,5.85976927,173.62,173.58,7.96115001]
[1752738346674,0.1,173.62,173.6,7.96115001]
[1752738346881,0.1,173.62,173.56,0.5]
[1752738347055,0.1,173.62,173.57,7.96115001]
[1752738347253,0.1,173.62,173.56,0.5]
[1752738347454,0.1,173.62,173.57,7.96115001]
[1752738347760,0.1,173.62,173.56,7.96115001]
[1752738348162,7.96115001,173.61,173.56,7.96115001]
[1752738349153,7.96115001,173.61,173.55,0.79138179]
[1752738349154,7.96115001,173.59,173.55,0.79138179]
[1752738349359,7.96115001,173.58,173.55,0.79138179]
[1752738349583,5.76015131,173.61,173.55,0.79138179]
[1752738349765,7.96115001,173.57,173.55,0.79138179]
[1752738350789,7.96115001,173.58,173.55,0.79138179]
[1752738350967,13.72122312,173.61,173.56,7.96115001]
[1752738351167,7.96115001,173.6,173.55,8.7525318]
[1752738351983,7.96115001,173.58,173.55,0.79138179]
[1752738352485,5.76133676,173.58,173.55,0.79138179]
[1752738352778,13.72248677,173.58,173.55,0.79138179]
[1752738353159,7.96115001,173.57,173.55,0.79138179]
[1752738354056,5.76169624,173.56,173.55,0.79138179]
[1752738355080,11.19399178,173.56,173.55,0.79138179]
[1752738357178,11.19399178,173.56,173.55,0.82138179]
[1752738360103,25.59823238,173.56,173.52,0.03]
[1752738360276,5.43229554,173.54,173.52,0.03]
[1752738360476,5.76269232,173.53,173.52,0.03]
[1752738360879,11.19498786,173.53,173.52,0.03]
[1752738362010,56.39672314,173.53,173.48,0.03]
[1752738362178,5.43229554,173.49,173.48,0.03]
[1752738362504,5.43229554,173.49,173.41,0.2]
[1752738362505,20.17523632,173.48,173.41,0.2]
[1752738362691,5.43229554,173.45,173.41,0.2]
[1752738362885,5.43229554,173.44,173.41,0.2]
[1752738363410,20.17523632,173.48,173.41,5.63229554]
[1752738363581,5.76435323,173.48,173.45,5.43229554]
[1752738364209,5.43229554,173.47,173.41,0.2]
[1752738364374,5.43229554,173.46,173.41,5.63229554]
[1752738365076,7.97668732,173.46,173.41,8.17668732]
[1752738365489,7.97668732,173.47,173.41,0.2]
[1752738365683,7.97668732,173.46,173.41,8.17668732]
[1752738365919,7.97668732,173.46,173.41,0.2]
[1752738366122,7.97668732,173.45,173.41,0.2]
[1752738366599,5.76568265,173.44,173.41,0.2]
[1752738366806,5.76468553,173.47,173.42,7.97668732]
[1752738367109,13.74137285,173.47,173.42,7.97668732]
[1752738367311,13.74137285,173.47,173.41,0.2]
[1752738367505,7.97668732,173.46,173.41,0.2]
[1752738367699,5.76468553,173.47,173.41,0.2]
[1752738367917,7.97668732,173.45,173.41,0.2]
[1752738368213,7.97668732,173.44,173.41,0.2]
[1752738368722,5.7660151,173.43,173.41,0.2]
[1752738369290,5.76574246,173.44,173.41,0.2]
[1752738369497,5.76574246,173.44,173.41,8.17668732]
[1752738370306,5.76574246,173.44,173.41,0.2]
[1752738371313,13.74242978,173.44,173.41,0.2]
[1752738372501,5.76574246,173.44,173.41,0.2]
[1752738372704,7.97668732,173.44,173.41,0.2]
[1752738372907,7.97668732,173.45,173.41,8.17668732]
[1752738373329,7.97668732,173.45,173.41,0.2]
[1752738373512,40.41171384,173.47,173.41,0.2]
[1752738373706,7.97668732,173.45,173.41,0.2]
[1752738374011,7.97668732,173.44,173.41,0.2]
[1752738374211,7.97668732,173.45,173.41,0.2]
[1752738374713,5.76532693,173.46,173.43,7.97668732]
[1752738374893,5.76532693,173.46,173.44,7.97668732]
[1752738376001,5.76532693,173.46,173.43,7.97668732]
[1752738376634,5.76435323,173.48,173.43,7.97668732]
[1752738376837,7.97668732,173.47,173.43,7.97668732]
[1752738377018,7.97668732,173.47,173.41,0.2]
[1752738377318,7.97668732,173.47,173.43,7.97668732]
[1752738377835,5.76501787,173.46,173.43,7.97668732]
[1752738378332,5.76501787,173.46,173.41,0.2]
[1752738378510,5.76501787,173.46,173.43,7.97668732]
[1752738378702,13.74140212,173.47,173.43,8.00668732]
[1752738378904,5.7647148,173.47,173.43,8.00668732]
[1752738379126,148.1,173.49,173.46,7.97668732]
[1752738379315,148.1,173.49,173.48,7.97668732]
[1752738380432,148.1,173.49,173.47,7.97668732]
[1752738380934,5.76374014,173.5,173.47,7.97668732]
[1752738381128,5.76374014,173.5,173.44,5.76552568]
[1752738381334,5.76374014,173.5,173.45,7.97668732]
[1752738381335,13.74042746,173.5,173.45,7.97668732]
[1752738381516,7.97668732,173.49,173.44,7.97668732]
[1752738381822,7.97668732,173.47,173.43,0.03]
[1752738385825,40.36302443,173.52,173.48,7.97668732]
[1752738386235,40.36302443,173.52,173.49,7.97668732]
[1752738386439,5.76302443,173.52,173.49,7.97668732]
[1752738386806,5.76302443,173.52,173.44,31.76568265]
[1752738387146,5.82269232,173.53,173.49,5.43406777]
[1752738387499,11.25676009,173.53,173.48,5.43406777]
[1752738388732,0.06,173.53,173.45,5.76517103]
[1752738388907,0.06,173.53,173.5,5.43406777]
[1752738389108,0.06,173.53,173.51,5.43406777]
[1752738389307,0.06,173.53,173.52,5.43406777]
[1752738389925,0.06,173.53,173.51,5.43406777]
[1752738391438,0.06,173.53,173.5,5.43406777]
[1752738392422,0.06,173.53,173.48,26.0]
[1752738392624,0.06,173.53,173.51,5.43406777]
[1752738394518,0.06,173.53,173.5,5.43406777]
[1752738395727,0.06,173.53,173.49,5.43406777]
[1752738396617,5.82269232,173.53,173.46,7.42891698]
[1752738396819,5.82269232,173.53,173.48,5.43406777]
[1752738397246,5.82269232,173.53,173.5,5.43406777]
[1752738397740,0.06,173.53,173.47,5.76466626]
[1752738397925,0.06,173.53,173.49,5.43406777]
[1752738399147,0.06,173.53,173.5,5.43406777]
[1752738399443,0.06,173.53,173.49,5.43406777]
[1752738399932,0.06,173.53,173.5,5.43406777]
[1752738400741,0.06,173.53,173.46,5.76501787]
[1752738400948,0.06,173.53,173.5,5.43406777]
[1752738402120,0.06,173.53,173.52,5.43406777]
[1752738403021,0.06,173.53,173.46,42.78468397]
[1752738403228,0.06,173.53,173.51,5.43406777]
[1752738405443,0.06,173.53,173.46,26.0]
[1752738405651,0.06,173.53,173.5,5.43406777]
[1752738405858,0.06,173.53,173.51,5.43406777]
[1752738406150,0.06,173.53,173.52,5.43406777]
[1752738408453,0.06,173.53,173.52,22.21875174]
[1752738409438,0.06,173.53,173.52,5.43406777]
[1752738409633,0.06,173.53,173.52,11.1970922]
[1752738410756,0.06,173.53,173.52,5.43406777]
[1752738411258,0.06,173.53,173.52,11.1970922]
[1752738412738,0.06,173.53,173.52,45.6370922]
[1752738413155,0.06,173.53,173.52,62.42177617]
[1752738418754,1.6568,173.62,173.52,84.1770141]
[1752738418755,7.41657114,173.62,173.52,84.1770141]
[1752738418938,12.85063891,173.62,173.58,5.43406777]
[1752738419738,7.41657114,173.62,173.58,5.43406777]
[1752738420064,7.41657114,173.62,173.59,5.43406777]
[1752738420380,7.41657114,173.62,173.58,5.43406777]
[1752738421151,5.43406777,173.61,173.55,26.0]
[1752738421353,5.43406777,173.61,173.56,5.43406777]
[1752738421553,7.41657114,173.62,173.57,5.43406777]
[1752738421785,12.85063891,173.62,173.57,5.43406777]
[1752738423845,12.85063891,173.62,173.54,40.14218618]
[1752738423846,5.43406777,173.61,173.56,5.43406777]
[1752738424042,21.81583389,173.62,173.53,34.34]
[1752738424247,21.81583389,173.62,173.56,5.43406777]
[1752738424248,5.43406777,173.61,173.56,5.43406777]
[1752738424480,5.76036866,173.6,173.56,5.43406777]
[1752738424684,5.76036866,173.6,173.52,5.76293095]
[1752738424889,11.19443643,173.6,173.55,5.43406777]
[1752738425093,5.76036866,173.6,173.56,5.43406777]
[1752738425249,5.76036866,173.6,173.58,5.43406777]
[1752738426266,5.76003686,173.61,173.57,5.43406777]
[1752738426994,5.76003686,173.61,173.54,34.34]
[1752738426995,5.43406777,173.6,173.54,34.34]
[1752738427159,5.43406777,173.6,173.55,5.43406777]
[1752738427359,5.43406777,173.6,173.54,34.34]
[1752738427360,5.43406777,173.6,173.56,5.43406777]
[1752738427561,5.43406777,173.6,173.54,26.0]
[1752738427787,5.43406777,173.6,173.55,5.43406777]
[1752738427980,20.16012902,173.61,173.55,5.43406777]
[1752738428183,5.43406777,173.6,173.55,5.43406777]
[1752738428508,11.19476827,173.59,173.53,34.32]
[1752738428810,11.19476827,173.59,173.55,5.43406777]
[1752738429008,11.19476827,173.59,173.53,34.32]
[1752738429299,5.76028734,173.61,173.57,5.43406777]
[1752738429509,5.76028734,173.61,173.58,5.43406777]
[1752738429708,5.76028734,173.61,173.57,5.43406777]
[1752738429994,11.19435511,173.61,173.57,5.43406777]
[1752738430488,11.19435511,173.61,173.53,40.08260453]
[1752738430489,5.76028734,173.61,173.58,5.43406777]
[1752738430995,5.76028734,173.61,173.57,5.43406777]
[1752738431377,11.19435511,173.61,173.56,5.43406777]
[1752738431583,5.43406777,173.6,173.55,5.43406777]
[1752738432590,5.76036866,173.6,173.56,5.43406777]
[1752738433089,5.76036866,173.6,173.54,5.76232641]
[1752738433306,5.76036866,173.6,173.56,5.43406777]
[1752738434289,5.76036866,173.6,173.57,5.43406777]
[1752738435497,5.7601236,173.61,173.57,5.43406777]
[1752738436068,5.7601236,173.61,173.58,5.43406777]
[1752738436264,11.25377287,173.62,173.57,5.43406777]
[1752738436992,11.25377287,173.62,173.53,34.28]
[1752738436993,11.25377287,173.62,173.54,5.76223893]
[1752738437173,11.25377287,173.62,173.57,5.43406777]
[1752738437983,11.25377287,173.62,173.54,5.76223893]
[1752738438192,11.25377287,173.62,173.57,5.43406777]
[1752738439703,11.25377287,173.62,173.57,5.43406777]
[1752738440494,5.43406777,173.61,173.57,5.43406777]
[1752738440675,5.8197051,173.62,173.57,5.43406777]
[1752738440876,11.25377287,173.62,173.57,5.43406777]
[1752738441185,5.43406777,173.6,173.54,34.22]
[1752738441493,5.43406777,173.61,173.56,5.43406777]
[1752738441795,5.43406777,173.61,173.54,34.22]
[1752738442000,5.43406777,173.61,173.56,5.43406777]
[1752738442186,0.06,173.62,173.56,5.43406777]
[1752738442386,5.43406777,173.61,173.56,5.43406777]
[1752738442577,5.49406777,173.62,173.57,5.43406777]
[1752738443301,5.76003686,173.61,173.57,5.43406777]
[1752738443500,5.76003686,173.61,173.56,5.43406777]
[1752738443673,11.19410463,173.61,173.56,5.43406777]
[1752738444081,11.19410463,173.61,173.53,34.2]
[1752738444399,11.19410463,173.61,173.52,31.76302443]
[1752738444400,148.1,173.6,173.52,5.43406777]
[1752738444708,5.43406777,173.54,173.49,5.43406777]
[1752738445082,5.43406777,173.53,173.48,5.43406777]
[1752738445282,11.19742434,173.51,173.46,5.46406777]
[1752738445502,11.19742434,173.51,173.47,30.0]
[1752738445692,5.76335657,173.51,173.47,35.43406777]
[1752738445897,5.43406777,173.5,173.47,30.0]
[1752738446201,5.76335657,173.51,173.47,30.0]
[1752738446202,5.43406777,173.49,173.47,30.0]
[1752738447298,6.93456777,173.55,173.48,5.43406777]
[1752738447499,1.5005,173.55,173.51,5.43406777]
[1752738447679,6.93456777,173.55,173.5,5.43406777]
[1752738447872,50.94468397,173.59,173.54,5.43406777]
[1752738447873,14.40226225,173.59,173.54,5.43406777]
[1752738448075,5.76103237,173.58,173.56,5.43406777]
[1752738448297,5.76003686,173.61,173.57,5.43406777]